[Event "GER-ch Youth U18 2019"]
[Site "Willingen"]
[Date "2019.06.12"]
[Round "5.6"]
[White "Wong, Gengchun"]
[Black "Martin, Julian"]
[Result "0-1"]
[ECO "B96"]
[WhiteElo "2144"]
[BlackElo "2370"]
[Annotator "NA"]
[PlyCount "54"]
[EventDate "2019.06.07"]
[EventType "swiss"]
[EventRounds "9"]
[EventCountry "GER"]
[SourceTitle "playchess.com"]
[Source "ChessBase"]
[SourceQuality "1"]
[TimeControl "40/5400+30:1800+30"]

1. e4 {[%emt 0:00:00]} c5 {[%emt 0:00:00]} 2. Nf3 {[%emt 0:00:00]} d6 {[%emt 0:00:00]} 3. d4 {[%emt 0:00:00]} cxd4 {[%emt 0:00:00]} 4. Nxd4 {[%emt 0:00:00]} Nf6 {[%emt 0:00:04]} 5. Nc3 {[%emt 0:00:00]} a6 {[%emt 0:00:04]} 6. Bg5 {[%emt 0:00:13]} e6 {[%emt 0:00:17]} 7. f4 {[%emt 0:00:09]} Nbd7 {[%emt 0:00:20]} 8. Qf3 {[%emt 0:00:16]} h6 {[%emt 0:00:05]} 9. Bh4 {[%emt 0:00:29]} e5 {[%emt 0:00:06]} 10. fxe5 {[%emt 0:09:09]} Nxe5 {[%emt 0:00:07]} 11. Qe2 {[%emt 0:11:04]} Be7 {[%emt 0:06:30]} 12. Nf3 {[%emt 0:04:15]} O-O {[%emt 0:10:50]} 13. O-O-O {[%emt 0:07:17]} Qc7 {[%emt 0:01:50]} 14. Nxe5 {[%emt 0:29:18]} dxe5 {[%emt 0:00:26]} 15. Qc4 {[%emt 0:00:30]} Qa5 {[%emt 0:07:27]} 16. Nd5 {[%emt 0:07:45]} Nxd5 {[%emt 0:00:39]} 17. Rxd5 {[%emt 0:00:06]} b5 {[%emt 0:03:20]} 18. Bg3 {[%emt 0:08:24]} Be6 {[%emt 0:01:59]} 19. Qb3 {[%emt 0:01:04]} Bxd5 {[%emt 0:03:46]} 20. exd5 {[%emt 0:00:07]} e4 {[%emt 0:01:09]} 21. Be2 {[%emt 0:01:36]} Bg5+ {[%emt 0:00:57]} 22. Kb1 {[%emt 0:00:06]} Qd2 {[%emt 0:00:57]} 23. Bg4 {[%emt 0:00:33]} Qxg2 {[%emt 0:04:28]} 24. Rd1 {[%emt 0:00:42]} f5 {[%emt 0:03:33]} 25. Bh5 {[%emt 0:01:15]} f4 {[%emt 0:02:13]} 26. d6+ {[%emt 0:00:15]} Kh8 {[%emt 0:02:40]} 27. Be1 {[%emt 0:00:37]} f3 {[%emt 0:00:32] normal} 0-1

[Event "GER-ch Youth U18 2019"]
[Site "Willingen"]
[Date "2019.06.12"]
[Round "5.7"]
[White "Lange, Jannis"]
[Black "Browning, Alex"]
[Result "0-1"]
[ECO "B96"]
[WhiteElo "2024"]
[BlackElo "2319"]
[Annotator "NA"]
[PlyCount "66"]
[EventDate "2019.06.07"]
[EventType "swiss"]
[EventRounds "9"]
[EventCountry "GER"]
[SourceTitle "playchess.com"]
[Source "ChessBase"]
[SourceQuality "1"]
[TimeControl "40/5400+30:1800+30"]

1. e4 {[%emt 0:00:00]} c5 {[%emt 0:00:00]} 2. Nf3 {[%emt 0:00:00]} d6 {[%emt 0:00:00]} 3. d4 {[%emt 0:00:00]} cxd4 {[%emt 0:00:00]} 4. Nxd4 {[%emt 0:00:00]} Nf6 {[%emt 0:00:00]} 5. Nc3 {[%emt 0:00:00]} a6 {[%emt 0:00:00]} 6. Bg5 {[%emt 0:00:25]} e6 {[%emt 0:00:05]} 7. f4 {[%emt 0:00:11]} h6 {[%emt 0:00:05]} 8. Bh4 {[%emt 0:00:05]} Qb6 {[%emt 0:00:05]} 9. Bxf6 {[%emt 0:00:24]} gxf6 {[%emt 0:00:08]} 10. Qd2 {[%emt 0:00:06]} Qxb2 {[%emt 0:00:15]} 11. Nb3 {[%emt 0:00:14]} Qa3 {[%emt 0:00:23]} 12. Be2 {[%emt 0:00:17]} h5 {[%emt 0:00:10]} 13. O-O {[%emt 0:00:36]} Be7 {[%emt 0:04:56]} 14. Nd1 {[%emt 0:04:04]} Qa4 {[%emt 0:05:06]} 15. Nb2 {[%emt 0:29:16]} Qc6 {[%emt 0:04:41]} 16. Rad1 {[%emt 0:10:02]} b5 {[%emt 0:06:31]} 17. Kh1 {[%emt 0:02:51]} Qb6 {[%emt 0:06:05]} 18. c4 {[%emt 0:05:04]} Bd7 {[%emt 0:00:48]} 19. Bf3 {[%emt 0:16:58]} Ra7 {[%emt 0:02:41]} 20. e5 {[%emt 0:00:41]} dxe5 {[%emt 0:07:26]} 21. fxe5 {[%emt 0:01:43]} f5 {[%emt 0:02:07]} 22. Qc3 {[%emt 0:13:32]} Rc7 {[%emt 0:01:16]} 23. Rc1 {[%emt 0:02:08]} Qa7 {[%emt 0:07:46]} 24. c5 {[%emt 0:01:41]} Bc6 {[%emt 0:00:38]} 25. Nd3 {[%emt 0:04:19]} h4 {[%emt 0:04:38]} 26. h3 {[%emt 0:01:21]} Rg8 {[%emt 0:06:05]} 27. Nf4 {[%emt 0:02:45]} Qa8 {[%emt 0:02:35]} 28. Nh5 {[%emt 0:00:53]} Nd7 {[%emt 0:01:08]} 29. Nd4 {[%emt 0:03:11]} Bxf3 {[%emt 0:01:13]} 30. Nxf3 {[%emt 0:00:24]} Rxc5 {[%emt 0:00:21]} 31. Qd4 {[%emt 0:00:20]} Qc6 {[%emt 0:02:23]} 32. Rcd1 {[%emt 0:00:36]} Nxe5 {[%emt 0:01:17]} 33. Nf4 {[%emt 0:01:08]} Nxf3 {[%emt 0:00:14] normal} 0-1

[Event "GER-ch Youth U18 2019"]
[Site "Willingen"]
[Date "2019.06.12"]
[Round "5.8"]
[White "Vuckovic, Zarko"]
[Black "Muetsch, Annmarie"]
[Result "1-0"]
[ECO "A05"]
[WhiteElo "2132"]
[BlackElo "2266"]
[Annotator "NA"]
[PlyCount "105"]
[EventDate "2019.06.07"]
[EventType "swiss"]
[EventRounds "9"]
[EventCountry "GER"]
[SourceTitle "playchess.com"]
[Source "ChessBase"]
[SourceQuality "1"]
[TimeControl "40/5400+30:1800+30"]

1. Nf3 {[%emt 0:00:00]} Nf6 {[%emt 0:00:00]} 2. c4 {[%emt 0:00:00]} g6 {[%emt 0:00:00]} 3. g3 {[%emt 0:00:00]} Bg7 {[%emt 0:00:00]} 4. Bg2 {[%emt 0:00:00]} O-O {[%emt 0:00:00]} 5. O-O {[%emt 0:00:00]} d6 {[%emt 0:00:02]} 6. Nc3 {[%emt 0:00:04]} Nc6 {[%emt 0:00:31]} 7. Rb1 {[%emt 0:00:14]} Bd7 {[%emt 0:00:48]} 8. b4 {[%emt 0:01:45]} e5 {[%emt 0:00:14]} 9. b5 {[%emt 0:01:17]} Ne7 {[%emt 0:00:22]} 10. d4 {[%emt 0:03:55]} exd4 {[%emt 0:01:20]} 11. Nxd4 {[%emt 0:00:08]} Qc8 {[%emt 0:00:52]} 12. Re1 {[%emt 0:07:50]} Nf5 {[%emt 0:06:56]} 13. Nb3 {[%emt 0:04:03]} Ng4 {[%emt 0:11:36]} 14. Bb2 {[%emt 0:06:26]} Ne5 {[%emt 0:07:06]} 15. Na5 {[%emt 0:04:30]} Rb8 {[%emt 0:01:47]} 16. e4 {[%emt 0:00:45]} Ne7 {[%emt 0:01:43]} 17. Qe2 {[%emt 0:02:14]} c6 {[%emt 0:13:55]} 18. Rbc1 {[%emt 0:20:38]} Be6 {[%emt 0:11:04]} 19. Nd5 {[%emt 0:02:08]} cxd5 {[%emt 0:04:40]} 20. cxd5 {[%emt 0:00:14]} Qd8 {[%emt 0:00:04]} 21. dxe6 {[%emt 0:00:06]} Qxa5 {[%emt 0:00:22]} 22. f4 {[%emt 0:02:20]} Qb6+ {[%emt 0:03:33]} 23. Kh1 {[%emt 0:00:19]} Nd3 {[%emt 0:00:06]} 24. Qxd3 {[%emt 0:01:17]} Bxb2 {[%emt 0:00:05]} 25. exf7+ {[%emt 0:00:21]} Rxf7 {[%emt 0:00:29]} 26. Rcd1 {[%emt 0:00:06]} Bg7 {[%emt 0:04:09]} 27. Qxd6 {[%emt 0:11:31]} Qxd6 {[%emt 0:00:15]} 28. Rxd6 {[%emt 0:00:02]} Nc8 {[%emt 0:07:34]} 29. Rd8+ {[%emt 0:01:24]} Rf8 {[%emt 0:00:07]} 30. Rd3 {[%emt 0:00:22]} Nb6 {[%emt 0:00:33]} 31. Ra3 {[%emt 0:02:11]} Ra8 {[%emt 0:02:25]} 32. e5 {[%emt 0:00:07]} Rf7 {[%emt 0:00:06]} 33. Rc1 {[%emt 0:00:42]} Rd7 {[%emt 0:01:20]} 34. Bh3 {[%emt 0:03:11]} Re7 {[%emt 0:00:33]} 35. Kg2 {[%emt 0:01:23]} g5 {[%emt 0:01:49]} 36. Kf3 {[%emt 0:09:23]} h5 {[%emt 0:02:56]} 37. Bf5 {[%emt 0:00:29]} Bh6 {[%emt 0:01:59]} 38. Ke4 {[%emt 0:00:40]} Nd7 {[%emt 0:05:17]} 39. Bxd7 {[%emt 0:03:30]} Rxd7 {[%emt 0:00:05]} 40. f5 {[%emt 0:02:13]} Rad8 {[%emt 0:02:14]} 41. f6 {[%emt 0:31:38]} g4 {[%emt 0:38:30]} 42. Rc4 {[%emt 0:01:30]} b6 {[%emt 0:02:42]} 43. e6 {[%emt 0:01:30]} Rd6 {[%emt 0:00:00]} 44. Rc6 {[%emt 0:00:00]} Rd4+ {[%emt 0:00:00]} 45. Kf5 {[%emt 0:00:00]} R4d5+ {[%emt 0:00:00]} 46. Kg6 {[%emt 0:00:00]} Bd2 {[%emt 0:00:00]} 47. f7+ {[%emt 0:00:00]} Kf8 {[%emt 0:00:00]} 48. Rxa7 {[%emt 0:00:00]} Bg5 {[%emt 0:00:00]} 49. a4 {[%emt 0:00:00]} Rb8 {[%emt 0:00:00]} 50. Kxh5 {[%emt 0:00:00]} Bf6+ {[%emt 0:00:00]} 51. Kg6 {[%emt 0:00:00]} Bg5 {[%emt 0:00:00]} 52. Rd7 {[%emt 0:00:00] normal} Re5 {[%emt 0:00:00]} 53. Rd4 {[%emt 0:00:00] normal} 1-0

[Event "GER-ch Youth U18 2019"]
[Site "Willingen"]
[Date "2019.06.12"]
[Round "5.9"]
[White "Arndt, Magnus"]
[Black "Ewert, Hannes"]
[Result "1/2-1/2"]
[ECO "C84"]
[WhiteElo "2186"]
[BlackElo "2268"]
[Annotator "NA"]
[PlyCount "50"]
[EventDate "2019.06.07"]
[EventType "swiss"]
[EventRounds "9"]
[EventCountry "GER"]
[SourceTitle "playchess.com"]
[Source "ChessBase"]
[SourceQuality "1"]
[TimeControl "40/5400+30:1800+30"]

1. e4 {[%emt 0:00:00]} e5 {[%emt 0:00:00]} 2. Nf3 {[%emt 0:00:00]} Nc6 {[%emt 0:00:00]} 3. Bb5 {[%emt 0:00:00]} a6 {[%emt 0:00:22]} 4. Ba4 {[%emt 0:00:00]} Nf6 {[%emt 0:00:09]} 5. O-O {[%emt 0:00:00]} Be7 {[%emt 0:00:05]} 6. d3 {[%emt 0:00:00]} d6 {[%emt 0:01:24]} 7. c3 {[%emt 0:08:12]} O-O {[%emt 0:01:07]} 8. h3 {[%emt 0:02:40]} h6 {[%emt 0:08:12]} 9. Re1 {[%emt 0:02:38]} Re8 {[%emt 0:09:30]} 10. Nbd2 {[%emt 0:06:39]} Bf8 {[%emt 0:03:47]} 11. Nf1 {[%emt 0:04:11]} b5 {[%emt 0:02:29]} 12. Bc2 {[%emt 0:02:08]} d5 {[%emt 0:09:59]} 13. a4 {[%emt 0:21:09]} Bb7 {[%emt 0:07:44]} 14. Ng3 {[%emt 0:15:39]} Qd7 {[%emt 0:12:46]} 15. d4 {[%emt 0:10:43]} dxe4 {[%emt 0:06:01]} 16. Nxe5 {[%emt 0:08:17]} Nxe5 {[%emt 0:00:31]} 17. dxe5 {[%emt 0:00:01]} Qxd1 {[%emt 0:06:05]} 18. Rxd1 {[%emt 0:00:07]} Rxe5 {[%emt 0:00:27]} 19. Bf4 {[%emt 0:00:13]} Rc5 {[%emt 0:01:22]} 20. Be3 {[%emt 0:03:40]} Rd5 {[%emt 0:08:22]} 21. Bd4 {[%emt 0:01:55]} Rd6 {[%emt 0:07:30]} 22. axb5 {[%emt 0:03:57]} axb5 {[%emt 0:00:06]} 23. Rxa8 {[%emt 0:00:10]} Bxa8 {[%emt 0:00:01]} 24. Bxf6 {[%emt 0:00:12]} Rxf6 {[%emt 0:01:42]} 25. Rd8 {[%emt 0:00:18]} Bb7 {[%emt 0:10:38] normal} 1/2-1/2

[Event "GER-ch Youth U18 2019"]
[Site "Willingen"]
[Date "2019.06.12"]
[Round "5.10"]
[White "Schneider, Jana"]
[Black "Engel, Robert"]
[Result "1/2-1/2"]
[ECO "B93"]
[WhiteElo "2235"]
[BlackElo "2067"]
[Annotator "NA"]
[PlyCount "92"]
[EventDate "2019.06.07"]
[EventType "swiss"]
[EventRounds "9"]
[EventCountry "GER"]
[SourceTitle "playchess.com"]
[Source "ChessBase"]
[SourceQuality "1"]
[TimeControl "40/5400+30:1800+30"]

1. e4 {[%emt 0:00:00]} c5 {[%emt 0:00:00]} 2. Nf3 {[%emt 0:00:00]} d6 {[%emt 0:00:00]} 3. d4 {[%emt 0:00:00]} cxd4 {[%emt 0:00:00]} 4. Nxd4 {[%emt 0:00:00]} Nf6 {[%emt 0:00:00]} 5. Nc3 {[%emt 0:00:00]} a6 {[%emt 0:00:00]} 6. f4 {[%emt 0:00:07]} Qc7 {[%emt 0:00:22]} 7. Bd3 {[%emt 0:04:11]} g6 {[%emt 0:00:45]} 8. O-O {[%emt 0:05:23]} Bg7 {[%emt 0:01:07]} 9. Kh1 {[%emt 0:00:32]} O-O {[%emt 0:00:22]} 10. Qe1 {[%emt 0:01:35]} b5 {[%emt 0:02:55]} 11. a4 {[%emt 0:19:02]} bxa4 {[%emt 0:06:02]} 12. Nf3 {[%emt 0:10:23]} Bb7 {[%emt 0:07:40]} 13. Qh4 {[%emt 0:03:39]} d5 {[%emt 0:06:32]} 14. e5 {[%emt 0:02:10]} Ne4 {[%emt 0:00:05]} 15. Nxe4 {[%emt 0:02:44]} dxe4 {[%emt 0:00:06]} 16. Ng5 {[%emt 0:00:07]} h6 {[%emt 0:01:17]} 17. Nxe4 {[%emt 0:00:10]} Bc6 {[%emt 0:07:18]} 18. Qg3 {[%emt 0:04:14]} Bb5 {[%emt 0:06:32]} 19. Nc3 {[%emt 0:05:03]} Bxd3 {[%emt 0:02:56]} 20. Qxd3 {[%emt 0:00:29]} Nd7 {[%emt 0:04:16]} 21. Nxa4 {[%emt 0:03:56]} Rfd8 {[%emt 0:05:39]} 22. Qe4 {[%emt 0:02:25]} Rac8 {[%emt 0:03:07]} 23. c3 {[%emt 0:04:14]} Nb6 {[%emt 0:00:55]} 24. Nxb6 {[%emt 0:04:27]} Qxb6 {[%emt 0:00:05]} 25. Qe2 {[%emt 0:01:41]} Qb5 {[%emt 0:04:26]} 26. Qxb5 {[%emt 0:02:20]} axb5 {[%emt 0:00:04]} 27. Ra7 {[%emt 0:02:00]} e6 {[%emt 0:01:37]} 28. Rb7 {[%emt 0:01:31]} Rd5 {[%emt 0:00:55]} 29. Be3 {[%emt 0:01:30]} Bf8 {[%emt 0:01:00]} 30. Ra1 {[%emt 0:04:55]} Rd3 {[%emt 0:01:52]} 31. Bd4 {[%emt 0:05:01]} b4 {[%emt 0:00:04]} 32. Kg1 {[%emt 0:01:09]} Rd2 {[%emt 0:03:43]} 33. Rb1 {[%emt 0:04:51]} Ra8 {[%emt 0:05:09]} 34. Ra7 {[%emt 0:04:12]} Rc8 {[%emt 0:01:25]} 35. Ra4 {[%emt 0:01:36]} Rb8 {[%emt 0:03:24]} 36. Kf1 {[%emt 0:01:02]} bxc3 {[%emt 0:03:52]} 37. Bxc3 {[%emt 0:00:01]} Rc2 {[%emt 0:00:07]} 38. Bd4 {[%emt 0:01:09]} Bb4 {[%emt 0:01:46]} 39. Rd1 {[%emt 0:00:55]} Bc5 {[%emt 0:00:41]} 40. Bxc5 {[%emt 0:00:37]} Rxc5 {[%emt 0:00:04]} 41. Rd2 {[%emt 0:04:02]} Rcb5 {[%emt 0:01:58]} 42. Ra2 {[%emt 0:03:30]} g5 {[%emt 0:04:49]} 43. g3 {[%emt 0:01:28]} Kg7 {[%emt 0:02:43]} 44. Kg2 {[%emt 0:00:37]} Kg6 {[%emt 0:00:56]} 45. Rf2 {[%emt 0:00:34]} gxf4 {[%emt 0:00:41]} 46. gxf4 {[%emt 0:00:13]} R8b7 {[%emt 0:00:31] normal} 1/2-1/2

[Event "GER-ch Youth U18 2019"]
[Site "Willingen"]
[Date "2019.06.12"]
[Round "5.11"]
[White "Goldbeck, Lars"]
[Black "Knoedler, Marcel"]
[Result "1-0"]
[ECO "D35"]
[WhiteElo "2199"]
[BlackElo "1633"]
[Annotator "NA"]
[PlyCount "61"]
[EventDate "2019.06.07"]
[EventType "swiss"]
[EventRounds "9"]
[EventCountry "GER"]
[SourceTitle "playchess.com"]
[Source "ChessBase"]
[SourceQuality "1"]
[TimeControl "40/5400+30:1800+30"]

1. d4 {[%emt 0:00:00]} d5 {[%emt 0:00:00]} 2. c4 {[%emt 0:00:00]} e6 {[%emt 0:00:10]} 3. Nc3 {[%emt 0:00:00]} Nf6 {[%emt 0:00:22]} 4. cxd5 {[%emt 0:00:00]} exd5 {[%emt 0:02:54]} 5. Bg5 {[%emt 0:01:01]} Be7 {[%emt 0:03:22]} 6. e3 {[%emt 0:00:02]} c6 {[%emt 0:02:41]} 7. Bd3 {[%emt 0:00:05]} Be6 {[%emt 0:06:28]} 8. h3 {[%emt 0:08:25]} a5 {[%emt 0:16:13]} 9. Nf3 {[%emt 0:03:15]} h6 {[%emt 0:05:06]} 10. Bf4 {[%emt 0:00:04]} Bd6 {[%emt 0:06:22]} 11. Ne5 {[%emt 0:02:11]} Qc7 {[%emt 0:03:57]} 12. Rc1 {[%emt 0:00:36]} Qe7 {[%emt 0:03:52]} 13. O-O {[%emt 0:02:50]} Nfd7 {[%emt 0:03:24]} 14. e4 {[%emt 0:02:44]} Nxe5 {[%emt 0:02:49]} 15. dxe5 {[%emt 0:00:08]} Bc7 {[%emt 0:03:24]} 16. exd5 {[%emt 0:00:53]} cxd5 {[%emt 0:01:15]} 17. Bb5+ {[%emt 0:00:33]} Nc6 {[%emt 0:00:41]} 18. Nxd5 {[%emt 0:00:33]} Bxd5 {[%emt 0:00:42]} 19. Qxd5 {[%emt 0:00:02]} O-O {[%emt 0:01:09]} 20. Bxc6 {[%emt 0:00:40]} bxc6 {[%emt 0:00:08]} 21. Qxc6 {[%emt 0:00:06]} Rac8 {[%emt 0:02:26]} 22. Qb7 {[%emt 0:01:37]} Qb4 {[%emt 0:02:13]} 23. Rxc7 {[%emt 0:00:38]} Rxc7 {[%emt 0:00:23]} 24. Qxc7 {[%emt 0:00:02]} Qxf4 {[%emt 0:00:22]} 25. Qxa5 {[%emt 0:00:06]} Re8 {[%emt 0:00:42]} 26. Re1 {[%emt 0:00:29]} Kh7 {[%emt 0:01:25]} 27. Qc3 {[%emt 0:00:56]} g5 {[%emt 0:02:47]} 28. b4 {[%emt 0:01:33]} h5 {[%emt 0:02:17]} 29. b5 {[%emt 0:01:17]} Qa4 {[%emt 0:01:21]} 30. Qf3 {[%emt 0:00:26]} Kg6 {[%emt 0:00:52]} 31. Qf6+ {[%emt 0:00:03] normal} 1-0

[Event "GER-ch Youth U18 2019"]
[Site "Willingen"]
[Date "2019.06.12"]
[Round "5.12"]
[White "Rockmann, Jan-Okke"]
[Black "Runte, Moritz"]
[Result "1/2-1/2"]
[ECO "B35"]
[WhiteElo "1816"]
[BlackElo "2096"]
[Annotator "NA"]
[PlyCount "98"]
[EventDate "2019.06.07"]
[EventType "swiss"]
[EventRounds "9"]
[EventCountry "GER"]
[SourceTitle "playchess.com"]
[Source "ChessBase"]
[SourceQuality "1"]
[TimeControl "40/5400+30:1800+30"]

1. e4 {[%emt 0:00:00]} c5 {[%emt 0:00:00]} 2. Nf3 {[%emt 0:00:00]} Nc6 {[%emt 0:00:00]} 3. d4 {[%emt 0:00:00]} cxd4 {[%emt 0:00:00]} 4. Nxd4 {[%emt 0:00:00]} g6 {[%emt 0:00:20]} 5. Be3 {[%emt 0:00:07]} Bg7 {[%emt 0:00:34]} 6. Nc3 {[%emt 0:00:13]} Nf6 {[%emt 0:00:30]} 7. Bc4 {[%emt 0:00:19]} O-O {[%emt 0:00:51]} 8. Bb3 {[%emt 0:00:06]} d5 {[%emt 0:01:12]} 9. exd5 {[%emt 0:12:06]} Na5 {[%emt 0:01:11]} 10. Nde2 {[%emt 0:00:14]} Nxb3 {[%emt 0:04:04]} 11. axb3 {[%emt 0:00:10]} b6 {[%emt 0:00:55]} 12. Bd4 {[%emt 0:06:05]} Bb7 {[%emt 0:02:32]} 13. Bxf6 {[%emt 0:01:35]} Bxf6 {[%emt 0:00:16]} 14. O-O {[%emt 0:00:28]} Qd7 {[%emt 0:10:58]} 15. Qd3 {[%emt 0:06:00]} Rfd8 {[%emt 0:01:54]} 16. Rfd1 {[%emt 0:00:50]} h5 {[%emt 0:06:47]} 17. Ra4 {[%emt 0:08:57]} e6 {[%emt 0:12:26]} 18. Ne4 {[%emt 0:22:23]} Be7 {[%emt 0:07:43]} 19. d6 {[%emt 0:00:55]} Bxe4 {[%emt 0:05:59]} 20. Qxe4 {[%emt 0:00:16]} Rac8 {[%emt 0:06:40]} 21. Rad4 {[%emt 0:08:23]} Bf6 {[%emt 0:03:12]} 22. R4d3 {[%emt 0:00:21]} Bg7 {[%emt 0:02:48]} 23. Nd4 {[%emt 0:16:31]} Bf8 {[%emt 0:02:33]} 24. c4 {[%emt 0:00:42]} Rc5 {[%emt 0:04:59]} 25. Nf3 {[%emt 0:05:10]} Qc6 {[%emt 0:01:27]} 26. Qxc6 {[%emt 0:02:10]} Rxc6 {[%emt 0:00:02]} 27. d7 {[%emt 0:01:44]} Rc7 {[%emt 0:02:22]} 28. Ne5 {[%emt 0:04:08]} Bg7 {[%emt 0:00:52]} 29. f4 {[%emt 0:00:04]} Kf8 {[%emt 0:01:44]} 30. Rd6 {[%emt 0:01:01]} Bxe5 {[%emt 0:00:39]} 31. fxe5 {[%emt 0:00:03]} Ke7 {[%emt 0:01:00]} 32. Kf2 {[%emt 0:00:01]} Rc5 {[%emt 0:01:59]} 33. Re1 {[%emt 0:00:04]} f6 {[%emt 0:01:31]} 34. Rd4 {[%emt 0:00:01]} fxe5 {[%emt 0:01:14]} 35. Rde4 {[%emt 0:00:04]} Rxd7 {[%emt 0:02:06]} 36. Rxe5 {[%emt 0:00:46]} Rxe5 {[%emt 0:01:28]} 37. Rxe5 {[%emt 0:00:03]} Kf6 {[%emt 0:01:31]} 38. Re2 {[%emt 0:00:08]} Rd3 {[%emt 0:00:53]} 39. b4 {[%emt 0:00:06]} Rb3 {[%emt 0:00:50]} 40. b5 {[%emt 0:00:12]} Rb4 {[%emt 0:00:34]} 41. Rc2 {[%emt 0:33:38]} Ke5 {[%emt 0:31:13]} 42. c5 {[%emt 0:00:21]} bxc5 {[%emt 0:00:14]} 43. Rxc5+ {[%emt 0:00:04]} Kd4 {[%emt 0:01:40]} 44. Rg5 {[%emt 0:00:59]} Rxb2+ {[%emt 0:00:25]} 45. Kf1 {[%emt 0:00:09]} e5 {[%emt 0:00:42]} 46. Rxg6 {[%emt 0:00:06]} e4 {[%emt 0:04:40]} 47. Rg3 {[%emt 0:00:00]} Rxb5 {[%emt 0:00:00]} 48. Ra3 {[%emt 0:00:00]} a5 {[%emt 0:00:00]} 49. Ke2 {[%emt 0:00:00]} h4 {[%emt 0:00:00] normal} 1/2-1/2

[Event "GER-ch Youth U18 2019"]
[Site "Willingen"]
[Date "2019.06.12"]
[Round "5.13"]
[White "Hinrichs, Niklas"]
[Black "Wendler, David"]
[Result "1/2-1/2"]
[ECO "A59"]
[WhiteElo "2115"]
[BlackElo "2166"]
[Annotator "NA"]
[PlyCount "97"]
[EventDate "2019.06.07"]
[EventType "swiss"]
[EventRounds "9"]
[EventCountry "GER"]
[SourceTitle "playchess.com"]
[Source "ChessBase"]
[SourceQuality "1"]
[TimeControl "40/5400+30:1800+30"]

1. d4 {[%emt 0:00:00]} Nf6 {[%emt 0:00:00]} 2. c4 {[%emt 0:00:00]} c5 {[%emt 0:00:03]} 3. d5 {[%emt 0:00:00]} b5 {[%emt 0:00:08]} 4. cxb5 {[%emt 0:00:00]} a6 {[%emt 0:00:09]} 5. bxa6 {[%emt 0:00:00]} g6 {[%emt 0:00:14]} 6. Nc3 {[%emt 0:00:00]} Bxa6 {[%emt 0:00:06]} 7. e4 {[%emt 0:00:05]} Bxf1 {[%emt 0:00:05]} 8. Kxf1 {[%emt 0:00:04]} d6 {[%emt 0:00:08]} 9. g3 {[%emt 0:00:14]} Bg7 {[%emt 0:00:05]} 10. Kg2 {[%emt 0:00:04]} O-O {[%emt 0:00:18]} 11. Nf3 {[%emt 0:00:04]} Qb6 {[%emt 0:00:16]} 12. Qe2 {[%emt 0:01:07]} Na6 13. a4 {[%emt 0:02:16]} Rfb8 {[%emt 0:02:42]} 14. Nb5 {[%emt 0:02:52]} Nc7 15. Nxc7 {[%emt 0:14:56]} Qxc7 {[%emt 0:02:36]} 16. Qc2 Rb4 17. Bd2 {[%emt 0:08:51]} Rxe4 {[%emt 0:22:51]} 18. Bc3 {[%emt 0:00:17]} e5 {[%emt 0:06:13]} 19. Nd2 {[%emt 0:02:51]} Rd4 {[%emt 0:00:06]} 20. Bxd4 {[%emt 0:16:15]} exd4 21. Rhc1 Rb8 {[%emt 0:08:27]} 22. a5 {[%emt 0:13:17]} Nxd5 {[%emt 0:02:36]} 23. a6 {[%emt 0:03:31]} Nb4 {[%emt 0:05:50]} 24. Qc4 d3 {[%emt 0:19:31]} 25. a7 {[%emt 0:06:01]} Qb7+ 26. Qe4 {[%emt 0:15:08]} Qxe4+ {[%emt 0:02:18]} 27. Nxe4 {[%emt 0:00:03]} Ra8 {[%emt 0:00:06]} 28. Nxc5 {[%emt 0:01:32]} Bxb2 {[%emt 0:13:42]} 29. Nxd3 Bxa1 {[%emt 0:01:26]} 30. Nxb4 {[%emt 0:00:59]} Rxa7 {[%emt 0:00:10]} 31. Rd1 {[%emt 0:01:51]} Bc3 {[%emt 0:05:42]} 32. Nd5 {[%emt 0:02:33]} Bg7 {[%emt 0:01:10]} 33. h4 {[%emt 0:01:45]} h5 {[%emt 0:02:50]} 34. Rd2 {[%emt 0:02:10]} Rb7 {[%emt 0:00:53]} 35. Ne3 {[%emt 0:02:32]} Bf8 {[%emt 0:02:42]} 36. f3 {[%emt 0:01:28]} f6 {[%emt 0:02:02]} 37. Rd3 {[%emt 0:01:13]} Kf7 {[%emt 0:00:14]} 38. g4 {[%emt 0:00:06]} hxg4 {[%emt 0:00:23]} 39. fxg4 {[%emt 0:01:15]} Ke6 {[%emt 0:01:54]} 40. Kf3 {[%emt 0:02:53]} Rb5 {[%emt 0:01:24]} 41. Ra3 {[%emt 0:02:30]} d5 {[%emt 0:04:36]} 42. Ra6+ {[%emt 0:01:14]} Bd6 {[%emt 0:01:19]} 43. h5 {[%emt 0:03:04]} gxh5 {[%emt 0:00:33]} 44. gxh5 {[%emt 0:00:06]} Rb4 {[%emt 0:04:26]} 45. h6 {[%emt 0:01:14]} Rb1 {[%emt 0:06:42]} 46. Kg4 {[%emt 0:09:17]} Rh1 {[%emt 0:03:21]} 47. Rb6 {[%emt 0:03:54]} Ke5 {[%emt 0:03:23]} 48. Rb5 {[%emt 0:03:31]} f5+ {[%emt 0:03:48]} 49. Kg5 {[%emt 0:00:30] normal} 1/2-1/2

[Event "GER-ch Youth U18 2019"]
[Site "Willingen"]
[Date "2019.06.12"]
[Round "5.14"]
[White "Schnabel, Bennett"]
[Black "Sureshkumar, Atchuthan"]
[Result "1-0"]
[ECO "A00"]
[WhiteElo "2125"]
[BlackElo "1502"]
[Annotator "NA"]
[PlyCount "24"]
[EventDate "2019.06.07"]
[EventType "swiss"]
[EventRounds "9"]
[EventCountry "GER"]
[SourceTitle "playchess.com"]
[Source "ChessBase"]
[SourceQuality "1"]
[TimeControl "40/5400+30:1800+30"]

1. a3 {[%emt 0:00:00]} e5 {[%emt 0:00:00]} 2. c4 {[%emt 0:00:00]} Nf6 {[%emt 0:00:52]} 3. d3 {[%emt 0:00:19]} Nc6 4. Nf3 d5 {[%emt 0:03:44]} 5. cxd5 {[%emt 0:00:39]} Nxd5 {[%emt 0:00:33]} 6. g3 {[%emt 0:01:13]} Bg4 {[%emt 0:01:37]} 7. Bg2 {[%emt 0:02:08]} Qd7 {[%emt 0:04:45]} 8. h3 {[%emt 0:00:10]} Bxf3 {[%emt 0:00:46]} 9. Bxf3 {[%emt 0:01:20]} Nd4 {[%emt 0:01:50]} 10. Bg2 {[%emt 0:00:49]} c6 {[%emt 0:04:45]} 11. Nc3 {[%emt 0:01:12]} Be7 {[%emt 0:00:43]} 12. O-O O-O {normal} 1-0